{"text_format":"3","workbook":"xlsx","n_sheets":1,"sheets":["Nobraukuma žurnāls un izdevu..."],"not_rendered":{"defined_names":6},"read":"whole","date_system":"1900"}

{"sheet":"Nobraukuma žurnāls un izdevu...","index":0,"n_rows":20,"n_cols":9,"rows_kept":20}
[null,"Nobraukuma Žurnāls un Izdevumu Atskaite"]
[]
[null,"Darbinieka Vārds",null,"Likme Par Kilometru",{"v":0.27,"d":"0.27 EUR "}]
[null,"Darbinieka ID",null,"Periods",{"$f":"\"No \"&TEXT(MIN(B9:B19),\"dd.mm.yy.\")&\" Līdz \"&TEXT(MAX(B9:B19),\"dd.mm.yy.\")","v":"No 05.08.17. Līdz 06.08.17."}]
[null,"Transportlīdzekļa Apraksts",null,"Kopējais Nobraukums",{"$f":"Kopējais_nobraukums","v":10}]
[null,"Pilnvaroja",null,"Kopējā Atmaksa",{"$f":"Kopējā_atmaksa","v":{"v":2.7,"d":"2.70 EUR "}}]
[]
[null,"Datums","Sākotnējā Atrašanās Vieta","Galamērķis","Apraksts/Piezīmes","Odometra Sākuma Rādījums","Odometra Beigu Rādījums","Nobraukums","Atmaksa"]
[null,{"$f":"TODAY()","v":"2017-08-05"},"Uzņēmuma birojs","Northwind Traders","Tikšanās ar klientu",36098,36103,{"$f":"IFERROR(IF(OR(ISBLANK(F9),ISBLANK(G9)),0,G9-F9), \"\")","v":5},{"$f":"IFERROR(H9*$E$3, \"\")","v":{"v":1.35,"d":"1.35 EUR "}}]
[null,{"$f":"TODAY()+1","v":"2017-08-06"},"Northwind Traders","Uzņēmuma birojs","Tikšanās ar klientu",36103,36108,{"$f":"IFERROR(IF(OR(ISBLANK(F10),ISBLANK(G10)),0,G10-F10), \"\")","v":5},{"$f":"IFERROR(H10*$E$3, \"\")","v":{"v":1.35,"d":"1.35 EUR "}}]
[{"$nulls":7},0,{"v":0,"d":"0.00 EUR "}]
[{"$nulls":7},0,{"v":0,"d":"0.00 EUR "}]
[{"$nulls":7},0,{"v":0,"d":"0.00 EUR "}]
[{"$nulls":7},0,{"v":0,"d":"0.00 EUR "}]
[{"$nulls":7},0,{"v":0,"d":"0.00 EUR "}]
[{"$nulls":7},0,{"v":0,"d":"0.00 EUR "}]
[{"$nulls":7},0,{"v":0,"d":"0.00 EUR "}]
[{"$nulls":7},0,{"v":0,"d":"0.00 EUR "}]
[{"$nulls":7},0,{"v":0,"d":"0.00 EUR "}]
[{"$nulls":6},"Kopsummas",{"$f":"SUBTOTAL(109,Izdevumi[Nobraukums])","v":10},{"$f":"SUBTOTAL(109,Izdevumi[Atmaksa])","v":{"v":2.7,"d":"2.70 EUR "}}]